fUSD/lending_fUSD_20250113
["ID","MTS","AMOUNT","RATE_DAILY","PERIOD"]
[348777237,1736779878798,-500.0,0.00011363,2]
[348777238,1736779878808,-1708.73,0.00011363,2]
[348777239,1736779878818,-2924.42,0.00011363,2]
[348777240,1736779878831,-500.0,0.00011364,2]
[348777241,1736779878840,-500.0,0.00011364,2]
[348777242,1736779878850,-510.01309691,0.00011364,2]
[348777243,1736779878859,-500.0,0.00011364,2]
[348777244,1736779878869,-500.0,0.00011364,2]
[348777245,1736779878879,-1102.59,0.00011365,2]
[348777246,1736779878888,-1080.41,0.00011365,2]
[348777247,1736779878897,-1622.71,0.00011365,2]
[348777248,1736779878906,-3131.28,0.00011365,2]
[348777249,1736779878916,-1069.25,0.00011365,2]
[348777250,1736779878926,-1392.58,0.00011365,2]
[348777251,1736779878935,-1179.25,0.00011365,2]
[348777252,1736779878945,-1617.36,0.00011365,2]
[348777253,1736779878956,-1090.26,0.00011365,2]
[348777254,1736779878965,-1044.57,0.00011365,2]
[348777255,1736779878975,-744.86,0.00011365,2]
[348777256,1736779878985,-500.0,0.00011365,2]
[348777257,1736779878995,-1033.17,0.00011365,2]
[348777258,1736779879005,-1143.1,0.00011365,2]
[348777259,1736779879015,-1217.84,0.00011365,2]
[348777260,1736779879024,-1167.1,0.00011365,2]
[348777261,1736779879034,-1266.02,0.00011365,2]
[348777262,1736779879045,-1553.51,0.00011365,2]
[348777263,1736779879055,-2337.19,0.00011365,2]
[348777264,1736779879065,-687.03,0.00011365,2]
[348777265,1736779879076,-566.34,0.00011365,2]
[348777266,1736779879089,-1860.97,0.00011365,2]
[348777267,1736779879100,-500.0,0.00011365,2]
[348777268,1736779879110,-979.03,0.00011365,2]
[348777269,1736779879120,-1232.6,0.00011365,2]
[348777270,1736779879131,-703.3,0.00011365,2]
[348777271,1736779879141,-500.0,0.00011365,2]
[348777272,1736779879151,-1345.74,0.00011365,2]
[348777273,1736779879161,-1983.85,0.00011365,2]
[348777274,1736779879171,-1109.44,0.00011368,2]
[348777275,1736779879181,-1573.01,0.00011368,2]
[348777276,1736779879191,-2880.33,0.00011368,2]
[348777277,1736779879203,-623.50640378,0.00011383,2]
[348777278,1736779879214,-1100.0,0.000114,4]
[348777279,1736779879227,-232.28840414,0.00011407,2]
[348777280,1736779879237,-1069.82645226,0.00011429,2]
[348777281,1736779879247,-623.50640378,0.00011452,2]
[348777282,1736779879257,-1100.0,0.000115,4]
[348777283,1736779879267,-1200.0,0.00011506,2]
[348777284,1736779879276,-1200.0,0.00011506,2]
[348777285,1736779879286,-1200.0,0.00011506,2]
[348777286,1736779879295,-1200.0,0.00011506,2]
[348777287,1736779879305,-1200.0,0.00011506,2]
[348777288,1736779879315,-1200.0,0.00011506,2]
[348777289,1736779879325,-2000.0,0.00011507,2]
[348777290,1736779879340,-2000.0,0.00011507,2]
[348777291,1736779879350,-2000.0,0.00011507,2]
[348777292,1736779879359,-2000.0,0.00011507,2]
[348777293,1736779879368,-2000.0,0.00011507,2]
[348777294,1736779879378,-2000.0,0.00011507,2]
[348777295,1736779879388,-2000.0,0.00011507,2]
[348777296,1736779879397,-2000.0,0.00011507,2]
[348777297,1736779879407,-2000.0,0.00011507,2]
[348777298,1736779879416,-2000.0,0.00011507,2]
[348777299,1736779879426,-2000.0,0.00011507,2]
[348777300,1736779879435,-2000.0,0.00011507,2]
[348777301,1736779879445,-2000.0,0.00011507,2]
[348777302,1736779879454,-2000.0,0.00011507,2]
[348777303,1736779879464,-2000.0,0.00011507,2]
[348777304,1736779879473,-2000.0,0.00011507,2]
[348777305,1736779879483,-2000.0,0.00011507,2]
[348777306,1736779879492,-2000.0,0.00011507,2]
[348777307,1736779879502,-2000.0,0.00011507,2]
[348777308,1736779879512,-2000.0,0.00011507,2]
[348777309,1736779879521,-2000.0,0.00011507,2]
[348777310,1736779879531,-2000.0,0.00011507,2]
[348777311,1736779879716,-2000.0,0.00011507,2]
[348777312,1736779879726,-2000.0,0.00011507,2]
[348777313,1736779879737,-2000.0,0.00011507,2]
[348777314,1736779879747,-2000.0,0.00011507,2]
[348777315,1736779879757,-2000.0,0.00011507,2]
[348777316,1736779879767,-2000.0,0.00011507,2]
[348777317,1736779879777,-2000.0,0.00011507,2]
[348777318,1736779879787,-2000.0,0.00011507,2]
[348777319,1736779879797,-2000.0,0.00011507,2]
[348777320,1736779879807,-2000.0,0.00011507,2]
[348777321,1736779879817,-2000.0,0.00011507,2]
[348777322,1736779879826,-2000.0,0.00011507,2]
[348777323,1736779879840,-2000.0,0.00011507,2]
[348777324,1736779879850,-2000.0,0.00011507,2]
[348777325,1736779879860,-2000.0,0.00011507,2]
[348777326,1736779879871,-2000.0,0.00011507,2]
[348777327,1736779879881,-2000.0,0.00011507,2]
[348777328,1736779879891,-2000.0,0.00011507,2]
[348777329,1736779879901,-2000.0,0.00011507,2]
[348777330,1736779879911,-2000.0,0.00011507,2]
[348777331,1736779879921,-2000.0,0.00011507,2]
[348777332,1736779879931,-2000.0,0.00011507,2]
[348777333,1736779879941,-2000.0,0.00011507,2]
[348777334,1736779879951,-1644.0,0.00011507,2]
[348777335,1736779879961,-2751.0,0.00011507,2]
[348777336,1736779879972,-623.50640378,0.00011521,2]
[348777337,1736779879981,-232.28840409,0.00011539,2]
[348777338,1736779879990,-892.17,0.00011549,2]
[348777339,1736779879999,-1830.30895616,0.0001155,2]
[348777340,1736779880009,-623.50640378,0.0001159,2]
[348777341,1736779880019,-1100.0,0.000116,4]
[348777342,1736779880029,-809.3,0.00011629,2]
[348777343,1736779880039,-574.74,0.00011629,2]
[348777344,1736779880050,-1545.09,0.00011629,2]
[348777345,1736779880060,-835.72,0.00011629,2]
[348777346,1736779880069,-500.0,0.00011629,2]
[348777347,1736779880082,-518.54,0.0001163,2]
[348777348,1736779880091,-518.6,0.0001163,2]
[348777349,1736779880101,-264.71,0.0001163,2]
[348777350,1736779880111,-225.31454093,0.0001163,2]
[348777351,1736779880121,-500.0,0.0001163,2]
[348777352,1736779880131,-632.25,0.0001163,2]
[348777353,1736779880141,-298.88,0.0001163,2]
[348777354,1736779880151,-567.8,0.0001163,2]
[348777355,1736779880162,-500.0,0.0001163,2]
[348777356,1736779880171,-429.51,0.0001163,2]
[348777357,1736779880181,-1008.24,0.0001163,2]
[348777358,1736779880194,-500.0,0.0001163,2]
[348777359,1736779880204,-911.95,0.0001163,2]
[348777360,1736779880213,-500.0,0.0001163,2]
[348777361,1736779880224,-626.99,0.0001163,2]
[348777362,1736779880235,-560.45,0.0001163,2]
[348777363,1736779880245,-500.0,0.0001163,2]
[348777364,1736779880254,-1048.52,0.0001163,2]
[348777365,1736779880264,-756.35,0.0001163,2]
[348777366,1736779880273,-500.0,0.0001163,2]
[348777367,1736779880283,-1082.36,0.0001163,2]
[348777368,1736779880293,-784.1,0.0001163,2]
[348777369,1736779880303,-500.0,0.0001163,2]
[348777370,1736779880313,-636.05,0.0001163,2]
[348777371,1736779880323,-500.0,0.0001163,2]
[348777372,1736779880336,-947.53,0.0001163,2]
[348777373,1736779880346,-711.04,0.0001163,2]
[348777374,1736779880355,-859.02,0.0001163,2]
[348777375,1736779880366,-802.41,0.0001163,2]
[348777376,1736779880376,-505.55,0.0001163,2]
[348777377,1736779880386,-500.0,0.0001163,2]
[348777378,1736779880395,-293.79,0.0001163,2]
[348777379,1736779880406,-500.0,0.0001163,2]
[348777380,1736779880416,-771.98,0.0001163,2]
[348777381,1736779880425,-500.0,0.0001163,2]
[348777382,1736779880435,-500.0,0.0001163,2]
[348777383,1736779880446,-3294.09,0.0001163,2]
[348777384,1736779880455,-507.78,0.0001163,2]
[348777385,1736779880465,-1028.35,0.0001163,2]
[348777386,1736779880475,-614.87,0.0001163,2]
[348777387,1736779880485,-885.67,0.0001163,2]
[348777388,1736779880494,-687.17,0.0001163,2]
[348777389,1736779880504,-1166.47,0.0001163,2]
[348777390,1736779880514,-3094.04,0.0001163,2]
[348777391,1736779880523,-500.0,0.0001163,2]
[348777392,1736779880533,-500.0,0.0001163,2]
[348777393,1736779880543,-1345.31,0.0001163,2]
[348777394,1736779880553,-828.61,0.0001163,2]
[348777395,1736779880563,-500.0,0.0001163,2]
[348777396,1736779880573,-500.0,0.0001163,2]
[348777397,1736779880585,-3850.07,0.0001163,2]
[348777398,1736779880594,-500.0,0.0001163,2]
[348777399,1736779880604,-500.0,0.0001163,2]
[348777400,1736779880614,-500.0,0.0001163,2]
[348777401,1736779880624,-1023.07,0.0001163,2]
[348777402,1736779880634,-500.0,0.0001163,2]
[348777403,1736779880644,-930.31,0.0001163,2]
[348777404,1736779880654,-500.0,0.0001163,2]
[348777405,1736779880663,-500.0,0.0001163,2]
[348777406,1736779880673,-2424.96,0.0001163,2]
[348777407,1736779880682,-817.18,0.0001163,2]
[348777408,1736779880693,-584.01,0.0001163,2]
[348777409,1736779880704,-183.79,0.0001163,2]
[348777410,1736779880714,-651.95,0.0001163,2]
[348777411,1736779880724,-881.04,0.0001163,2]
[348777412,1736779880734,-2056.62,0.0001163,2]
[348777413,1736779880744,-1755.19,0.0001163,2]
[348777414,1736779880753,-1452.74,0.0001163,2]
[348777415,1736779880763,-2017.84,0.0001163,2]
[348777416,1736779880772,-689.65,0.0001163,2]
[348777417,1736779880782,-1180.29,0.0001163,2]
[348777418,1736779880792,-500.0,0.0001163,2]
[348777419,1736779880802,-500.0,0.0001163,2]
[348777420,1736779880812,-500.0,0.0001163,2]
[348777421,1736779880823,-1540.87,0.0001163,2]
[348777422,1736779880836,-500.0,0.0001163,2]
[348777423,1736779880846,-704.17,0.0001163,2]
[348777424,1736779880856,-500.0,0.0001163,2]
[348777425,1736779880866,-1093.29,0.0001163,2]
[348777426,1736779880876,-1327.069977,0.0001163,2]
[348777427,1736779880886,-500.0,0.0001163,2]
[348777428,1736779880896,-1046.82,0.0001163,2]
[348777429,1736779880907,-500.0,0.0001163,2]
[348777430,1736779880917,-2160.15,0.0001163,2]
[348777431,1736779880927,-580.9,0.0001163,2]
[348777432,1736779880936,-743.46,0.0001163,2]
[348777433,1736779880946,-500.0,0.0001163,2]
[348777434,1736779880956,-1608.95,0.0001163,2]
[348777435,1736779880967,-500.0,0.0001163,2]
[348777436,1736779880976,-786.12,0.0001163,2]
[348777437,1736779880986,-500.0,0.0001163,2]
[348777438,1736779880996,-1346.451048,0.0001163,2]
[348777439,1736779881006,-500.0,0.0001163,2]
[348777440,1736779881016,-514.89,0.0001163,2]
[348777441,1736779881025,-901.56,0.0001163,2]
[348777442,1736779881035,-500.0,0.0001163,2]
[348777443,1736779881045,-2716.29,0.0001163,2]
[348777444,1736779881055,-500.0,0.0001163,2]
[348777445,1736779881065,-500.0,0.0001163,2]
[348777446,1736779881074,-656.5,0.0001163,2]
[348777447,1736779881087,-1804.87,0.0001163,2]
[348777448,1736779881096,-1052.03,0.0001163,2]
[348777449,1736779881106,-3293.38,0.0001163,2]
[348777450,1736779881116,-500.0,0.0001163,2]
[348777451,1736779881127,-500.0,0.0001163,2]
[348777452,1736779881137,-500.0,0.0001163,2]
[348777453,1736779881146,-1725.58,0.0001163,2]
[348777454,1736779881156,-500.0,0.0001163,2]
[348777455,1736779881166,-1955.15,0.0001163,2]
[348777456,1736779881176,-500.0,0.0001163,2]
[348777457,1736779881186,-500.0,0.0001163,2]
[348777458,1736779881196,-500.0,0.0001163,2]
[348777459,1736779881207,-500.0,0.0001163,2]
[348777460,1736779881216,-1572.9,0.0001163,2]
[348777461,1736779881226,-500.0,0.0001163,2]
[348777462,1736779881236,-2786.47,0.0001163,2]
[348777463,1736779881246,-498.57,0.0001163,2]
[348777464,1736779881256,-858.52920599,0.00011631,2]
[348777465,1736779881266,-535.36174188,0.00011631,2]
[348777466,1736779881275,-500.0,0.00011631,2]
[348777467,1736779881285,-500.0,0.00011631,2]
[348777468,1736779881295,-500.0,0.00011631,2]
[348777469,1736779881304,-500.0,0.00011631,2]
[348777470,1736779881315,-500.0,0.00011631,2]
[348777471,1736779881326,-500.0,0.00011631,2]
[348777472,1736779881339,-553.7,0.00011631,2]
[348777473,1736779881350,-500.0,0.00011631,2]
[348777474,1736779881360,-500.0,0.00011631,2]
[348777475,1736779881370,-500.0,0.00011631,2]
[348777476,1736779881379,-500.0,0.00011631,2]
[348777477,1736779881388,-471.28,0.00011631,2]
[348777478,1736779881398,-500.0,0.00011631,2]
[348777479,1736779881407,-500.0,0.00011631,2]
[348777480,1736779881417,-500.0,0.00011631,2]
[348777481,1736779881427,-500.0,0.00011631,2]
[348777482,1736779881437,-500.0,0.00011631,2]
[348777483,1736779881448,-500.0,0.00011631,2]
[348777484,1736779881458,-500.0,0.00011631,2]
[348777485,1736779881467,-500.0,0.00011631,2]
[348777486,1736779881477,-500.0,0.00011631,2]
[348777487,1736779881488,-500.0,0.00011631,2]
[348777488,1736779881498,-500.0,0.00011631,2]
[348777489,1736779881507,-500.0,0.00011631,2]
[348777490,1736779881517,-500.0,0.00011631,2]
[348777491,1736779881527,-500.0,0.00011631,2]
[348777492,1736779881536,-360.74629581,0.00011631,2]
[348777493,1736779881546,-500.0,0.00011631,2]
[348777494,1736779881555,-519.77901482,0.00011631,2]
[348777495,1736779881565,-164.97223338,0.00011631,2]
[348777496,1736779881575,-500.0,0.00011631,2]
[348777497,1736779881590,-500.0,0.00011631,2]
[348777498,1736779881600,-500.0,0.00011631,2]
[348777499,1736779881609,-500.0,0.00011631,2]
[348777500,1736779881618,-500.0,0.00011631,2]
[348777501,1736779881628,-767.24,0.00011631,2]
[348777502,1736779881638,-603.27591782,0.00011631,2]
[348777503,1736779881647,-247.87634461,0.00011631,2]
[348777504,1736779881657,-500.0,0.00011631,2]
[348777505,1736779881667,-620.39,0.00011631,2]
[348777506,1736779881676,-514.56,0.00011631,2]
[348777507,1736779881685,-500.0,0.00011631,2]
[348777508,1736779881695,-500.0,0.00011631,2]
[348777509,1736779881705,-500.0,0.00011631,2]
[348777510,1736779881715,-621.04838309,0.00011631,2]
[348777511,1736779881725,-500.0,0.00011631,2]
[348777512,1736779881735,-500.0,0.00011631,2]
[348777513,1736779881745,-500.0,0.00011631,2]
[348777514,1736779881756,-500.0,0.00011631,2]
[348777515,1736779881767,-235.89628639,0.00011631,2]
[348777516,1736779881777,-500.0,0.00011631,2]
[348777517,1736779881786,-187.45545181,0.00011631,2]
[348777518,1736779881796,-500.0,0.00011631,2]
[348777519,1736779881806,-500.0,0.00011631,2]
[348777520,1736779881817,-194.01636065,0.00011631,2]
[348777521,1736779881827,-584.41976524,0.00011631,2]
[348777522,1736779881844,-500.0,0.00011631,2]
[348777523,1736779881854,-500.0,0.00011631,2]
[348777524,1736779881863,-500.0,0.00011631,2]
[348777525,1736779881873,-500.0,0.00011631,2]
[348777526,1736779881883,-500.0,0.00011631,2]
[348777527,1736779881892,-500.0,0.00011631,2]
[348777528,1736779881902,-329.21490884,0.00011631,2]
[348777529,1736779881912,-500.0,0.00011631,2]
[348777530,1736779881922,-500.0,0.00011631,2]
[348777531,1736779881932,-500.0,0.00011631,2]
[348777532,1736779881942,-826.53,0.00011631,2]
[348777533,1736779881952,-500.0,0.00011631,2]
[348777534,1736779881961,-343.57,0.00011631,2]
[348777535,1736779881971,-500.0,0.00011631,2]
[348777536,1736779881981,-500.0,0.00011631,7]
[348777537,1736779881990,-500.0,0.00011631,2]
[348777538,1736779882001,-741.0,0.00011631,2]
[348777539,1736779882011,-500.0,0.00011631,2]
[348777540,1736779882021,-500.0,0.00011631,2]
[348777541,1736779882030,-500.0,0.00011631,2]
[348777542,1736779882040,-500.0,0.00011631,2]
[348777543,1736779882049,-672.04,0.00011631,2]
[348777544,1736779882059,-849.97,0.00011631,2]
[348777545,1736779882070,-500.0,0.00011631,2]
[348777546,1736779882079,-500.0,0.00011631,2]
[348777547,1736779882093,-500.0,0.00011631,2]
[348777548,1736779882103,-500.0,0.00011631,2]
[348777549,1736779882112,-500.0,0.00011631,2]
[348777550,1736779882122,-500.0,0.00011631,2]
[348777551,1736779882131,-505.18478855,0.00011631,2]
[348777552,1736779882187,-500.0,0.00011631,2]
[348777553,1736779882200,-500.0,0.00011631,2]
[348777554,1736779882210,-500.0,0.00011631,2]
[348777555,1736779882219,-500.0,0.00011631,2]
[348777556,1736779882229,-500.0,0.00011631,2]
[348777557,1736779882239,-500.0,0.00011631,2]
[348777558,1736779882248,-500.0,0.00011631,2]
[348777559,1736779882257,-500.0,0.00011631,2]
[348777560,1736779882268,-595.14,0.00011631,2]
[348777561,1736779882277,-673.98,0.00011631,2]
[348777562,1736779882286,-500.0,0.00011631,2]
[348777563,1736779882295,-500.0,0.00011631,2]
[348777564,1736779882305,-715.94,0.00011631,2]
[348777565,1736779882315,-500.0,0.00011631,2]
[348777566,1736779882324,-500.0,0.00011631,2]
[348777567,1736779882336,-500.0,0.00011631,2]
[348777568,1736779882345,-742.47,0.00011631,2]
[348777569,1736779882355,-1412.07,0.00011631,2]
[348777570,1736779882364,-500.0,0.00011631,2]
[348777571,1736779882373,-763.99,0.00011631,2]
[348777572,1736779882382,-657.22,0.00011631,2]
[348777573,1736779882391,-500.0,0.00011631,2]
[348777574,1736779882400,-1255.23,0.00011631,2]
[348777575,1736779882410,-1255.23,0.00011631,2]
[348777576,1736779882420,-522.67,0.00011631,2]
[348777577,1736779882429,-500.0,0.00011637,2]
[348777578,1736779882438,-999.0,0.00011637,2]
[348777579,1736779882447,-1536.47,0.00011637,2]
[348777580,1736779882457,-1843.92,0.00011637,2]
[348777581,1736779882466,-3278.93,0.00011637,2]
[348777582,1736779882477,-500.0,0.00011637,2]
[348777583,1736779882486,-1708.73,0.00011637,2]
[348777584,1736779882496,-2924.42,0.00011637,2]
[348777585,1736779882507,-500.0,0.00011638,2]
[348777586,1736779882516,-500.0,0.00011638,2]
[348777587,1736779882528,-216.9,0.00011638,2]
[348777588,1736779882539,-500.0,0.00011638,2]
[348777589,1736779882550,-1102.59,0.00011639,2]
[348777590,1736779882559,-1080.41,0.00011639,2]
[348777591,1736779882569,-1622.71,0.00011639,2]
[348777592,1736779882578,-3131.28,0.00011639,2]
[348777593,1736779882590,-1069.25,0.00011639,2]
[348777594,1736779882599,-1392.58,0.00011639,2]
[348777595,1736779882609,-1179.25,0.00011639,2]
[348777596,1736779882618,-1617.36,0.00011639,2]
[348777597,1736779882627,-1090.26,0.00011639,2]
[348777598,1736779882637,-1044.57,0.00011639,2]
[348777599,1736779882646,-744.86,0.00011639,2]
[348777600,1736779882656,-500.0,0.00011639,2]
[348777601,1736779882665,-1033.17,0.00011639,2]
[348777602,1736779882676,-1143.1,0.00011639,2]
[348777603,1736779882686,-1217.84,0.00011639,2]
[348777604,1736779882695,-1167.1,0.00011639,2]
[348777605,1736779882705,-1266.02,0.00011639,2]
[348777606,1736779882714,-1553.51,0.00011639,2]
[348777607,1736779882725,-510.04232966,0.00011639,2]
[348777608,1736779882984,-1827.14767034,0.00011639,2]
[348777609,1736779882994,-687.03,0.00011639,2]
[348777610,1736779883004,-566.34,0.00011639,2]
[348777611,1736779883013,-1474.0323146,0.00011639,2]
[348777612,1736779883025,-386.9376854,0.00011639,2]
[348777613,1736779883034,-500.0,0.00011639,2]
[348777614,1736779883043,-979.03,0.00011639,2]
[348777615,1736779883053,-1232.6,0.00011639,2]
[348777616,1736779883062,-703.3,0.00011639,2]
[348777617,1736779883072,-500.0,0.00011639,2]
[348777618,1736779883084,-1345.74,0.00011639,2]
[348777619,1736779883094,-1983.85,0.00011639,2]
[348777620,1736779883103,-416.84417236,0.00011642,2]
[348777621,1736779883898,-692.59582764,0.00011642,2]
[348777622,1736779883908,-1573.01,0.00011642,2]
[348777623,1736779883917,-2880.33,0.00011642,2]
[348777624,1736779883927,-623.50640378,0.00011659,2]
[348777625,1736779883938,-232.28840409,0.00011671,2]
[348777626,1736779883947,-159.894,0.0001168,2]
[348777627,1736779883957,-922.8678494,0.00011686,2]
[348777628,1736779883967,-1069.82645226,0.00011686,2]
[348777629,1736779883977,-1100.0,0.000117,4]
[348777630,1736779883986,-623.50640378,0.00011728,2]
[348777631,1736779883996,-623.50640378,0.00011797,2]
[348777632,1736779884007,-1520.0,0.000118,4]
[348777633,1736779884017,-151.266,0.00011801,2]
[348777634,1736779884026,-1268.0,0.00011801,2]
[348777635,1736779884036,-2016.0,0.00011801,2]
[348777636,1736779884046,-212.528,0.00011801,2]
[348777637,1736779884056,-258.884,0.00011801,2]
[348777638,1736779884067,-566.0,0.00011801,2]
[348777639,1736779884076,-635.0,0.00011801,2]
[348777640,1736779884092,-1861.0,0.00011801,2]
[348777641,1736779884102,-1041.949,0.00011801,2]
[348777642,1736779884112,-1259.0,0.00011801,2]
[348777643,1736779884122,-832.0,0.00011801,2]
[348777644,1736779884131,-2944.0,0.00011801,2]
[348777645,1736779884141,-553.705,0.00011801,2]
[348777646,1736779884151,-3979.0,0.00011801,2]
[348777647,1736779884160,-3897.0,0.00011801,2]
[348777648,1736779884171,-1174.0,0.00011801,2]
[348777649,1736779884181,-150.389,0.00011801,2]
[348777650,1736779884196,-151.912,0.00011801,2]
[348777651,1736779884206,-9629.0,0.00011801,2]
[348777652,1736779884216,-1104.0,0.00011801,2]
[348777653,1736779884225,-232.28840409,0.00011804,2]
[348777654,1736779884238,-8500.0,0.00011824,2]
[348777655,1736779884248,-623.50640378,0.00011866,2]
[348777656,1736779884258,-186.32,0.00011866,2]
[348777657,1736779884269,-1830.30895616,0.00011875,2]
[348777658,1736779884279,-809.3,0.00011903,2]
[348777659,1736779884289,-574.74,0.00011903,2]
[348777660,1736779884299,-1545.09,0.00011903,2]
[348777661,1736779884308,-835.72,0.00011903,2]
[348777662,1736779884318,-500.0,0.00011903,2]
[348777663,1736779884327,-518.54,0.00011904,2]
[348777664,1736779884342,-518.6,0.00011904,2]
[348777665,1736779884352,-500.0,0.00011904,2]
[348777666,1736779884362,-632.25,0.00011904,2]
[348777667,1736779884372,-567.8,0.00011904,2]
[348777668,1736779884381,-500.0,0.00011904,2]
[348777669,1736779884391,-500.0,0.00011904,2]
[348777670,1736779884400,-1008.24,0.00011904,2]
[348777671,1736779884410,-500.0,0.00011904,2]
[348777672,1736779884419,-911.95,0.00011904,2]
[348777673,1736779884429,-500.0,0.00011904,2]
[348777674,1736779884439,-626.99,0.00011904,2]
[348777675,1736779884448,-560.45,0.00011904,2]
[348777676,1736779884458,-500.0,0.00011904,2]
[348777677,1736779884467,-1048.52,0.00011904,2]
[348777678,1736779884476,-756.35,0.00011904,2]
[348777679,1736779884487,-500.0,0.00011904,2]
[348777680,1736779884496,-1082.36,0.00011904,2]
[348777681,1736779884507,-784.1,0.00011904,2]
[348777682,1736779884517,-500.0,0.00011904,2]
[348777683,1736779884528,-636.05,0.00011904,2]
[348777684,1736779884539,-500.0,0.00011904,2]
[348777685,1736779884549,-947.53,0.00011904,2]
[348777686,1736779884560,-711.04,0.00011904,2]
[348777687,1736779884571,-859.02,0.00011904,2]
[348777688,1736779884585,-802.41,0.00011904,2]
[348777689,1736779884594,-505.55,0.00011904,2]
[348777690,1736779884604,-500.0,0.00011904,2]
[348777691,1736779884614,-500.0,0.00011904,2]
[348777692,1736779884623,-771.98,0.00011904,2]
[348777693,1736779884633,-500.0,0.00011904,2]
[348777694,1736779884643,-500.0,0.00011904,2]
[348777695,1736779884653,-3294.09,0.00011904,2]
[348777696,1736779884663,-507.78,0.00011904,2]
[348777697,1736779884674,-1028.35,0.00011904,2]
[348777698,1736779884683,-614.87,0.00011904,2]
[348777699,1736779884694,-687.17,0.00011904,2]
[348777700,1736779884704,-885.67,0.00011904,2]
[348777701,1736779884714,-1166.47,0.00011904,2]
[348777702,1736779884724,-3094.04,0.00011904,2]
[348777703,1736779884734,-500.0,0.00011904,2]
[348777704,1736779884743,-500.0,0.00011904,2]
[348777705,1736779884753,-1345.31,0.00011904,2]
[348777706,1736779884763,-828.61,0.00011904,2]
[348777707,1736779884772,-500.0,0.00011904,2]
[348777708,1736779884781,-500.0,0.00011904,2]
[348777709,1736779884792,-3850.07,0.00011904,2]
[348777710,1736779884802,-500.0,0.00011904,2]
[348777711,1736779884812,-500.0,0.00011904,2]
[348777712,1736779884822,-500.0,0.00011904,2]
[348777713,1736779884834,-1023.07,0.00011904,2]
[348777714,1736779884844,-500.0,0.00011904,2]
[348777715,1736779884854,-930.31,0.00011904,2]
[348777716,1736779884864,-500.0,0.00011904,2]
[348777717,1736779884873,-500.0,0.00011904,2]
[348777718,1736779884883,-2424.96,0.00011904,2]
[348777719,1736779884893,-817.18,0.00011904,2]
[348777720,1736779884903,-584.01,0.00011904,2]
[348777721,1736779884913,-881.04,0.00011904,2]
[348777722,1736779884923,-651.95,0.00011904,2]
[348777723,1736779884934,-2056.62,0.00011904,2]
[348777724,1736779884944,-1755.19,0.00011904,2]
[348777725,1736779884954,-1452.74,0.00011904,2]
[348777726,1736779884965,-2017.84,0.00011904,2]
[348777727,1736779884975,-689.65,0.00011904,2]
[348777728,1736779884985,-1180.29,0.00011904,2]
[348777729,1736779884995,-500.0,0.00011904,2]
[348777730,1736779885004,-500.0,0.00011904,2]
[348777731,1736779885014,-500.0,0.00011904,2]
[348777732,1736779885024,-1540.87,0.00011904,2]
[348777733,1736779885035,-500.0,0.00011904,2]
[348777734,1736779885046,-704.17,0.00011904,2]
[348777735,1736779885056,-500.0,0.00011904,2]
[348777736,1736779885067,-1093.29,0.00011904,2]